bitfinex/quotes_ETHUSD_20250411
["timestamp","ask_amount","ask_price","bid_price","bid_amount"]
[1744376748512,0.1291,1555.5,1555.2,7.23104]
[1744376748722,0.1291,1555.9,1555.3,0.06429119]
[1744376748923,0.06423361,1555.8,1555.5,13.66446]
[1744376749238,0.19333361,1555.9,1555.6,6.42834]
[1744376749444,0.19333361,1555.9,1555.7,6.42779]
[1744376749594,0.1291,1556.1,1555.5,3.8072]
[1744376749795,6.42683,1556.0,1555.5,10.23598]
[1744376750024,0.06423361,1555.9,1555.6,6.4282]
[1744376750194,0.06423361,1555.9,1555.6,12.85647]
[1744376750396,0.06423361,1556.0,1555.6,12.85647]
[1744376750594,1.36885697,1556.0,1555.6,12.85647]
[1744376751041,1.36885697,1556.0,1555.6,13.34370653]
[1744376751546,0.06423361,1556.0,1555.7,6.42795]
[1744376751698,0.06423361,1556.0,1555.6,17.00567267]
[1744376751896,0.06423361,1556.0,1555.6,10.09014614]
[1744376752099,0.1291,1556.1,1555.6,10.09018614]
[1744376752306,6.61965361,1556.1,1555.6,16.51845614]
[1744376752508,0.85529897,1556.1,1555.7,6.4278]
[1744376752710,5.04102419,1556.3,1555.9,6.42693]
[1744376752942,5.1052578,1556.3,1555.9,12.85395]
[1744376753269,17.9564278,1556.3,1555.9,6.42693]
[1744376753468,11.46652419,1556.3,1555.9,12.85395]
[1744376753670,13.31992922,1556.3,1555.9,12.85395]
[1744376753976,6.83019561,1556.3,1555.9,13.34227592]
[1744376754159,4.9761578,1556.3,1556.1,0.8278]
[1744376754336,4.91192419,1556.3,1556.0,10.08828614]
[1744376755162,11.33744419,1556.3,1556.0,3.66191614]
[1744376755431,12.91663361,1556.2,1555.9,0.48832592]
[1744376755645,14.71226939,1556.2,1555.8,3.0]
[1744376755828,14.64803578,1556.2,1555.8,3.0]
[1744376756151,0.06423361,1556.1,1555.8,0.49309642]
[1744376756345,0.06423361,1556.1,1555.6,16.04548175]
[1744376756346,6.55598,1556.0,1555.6,2.03256561]
[1744376756547,0.1291,1556.0,1555.7,6.42791]
[1744376756850,0.1291,1556.0,1555.7,12.85572]
[1744376757052,0.06423361,1556.1,1555.8,16.51666614]
[1744376757228,0.06423361,1556.2,1555.8,16.51666614]
[1744376758821,0.06423361,1556.2,1555.8,10.58174432]
[1744376759026,0.06423361,1556.2,1555.8,17.00918432]
[1744376759326,12.97844,1556.3,1555.9,6.42709]
[1744376759327,6.55279,1556.3,1555.9,6.42709]
[1744376759523,0.06423361,1556.2,1555.9,6.42709]
[1744376759969,0.06423361,1556.2,1555.9,6.42702]
[1744376761547,0.06423361,1556.2,1555.8,17.00931432]
[1744376761746,6.61926361,1556.2,1555.8,6.23514575]
[1744376761947,13.04557361,1556.2,1555.8,10.58186432]
[1744376762277,0.1291,1556.2,1555.9,9.427]
[1744376762431,0.1272,1556.3,1556.0,10.96047588]
[1744376762870,0.1272,1556.3,1556.1,6.42613]
[1744376764145,0.1272,1556.3,1556.1,12.85234]
[1744376764345,0.1272,1556.3,1556.1,8.15832561]
[1744376764779,0.1272,1556.3,1556.2,10.15207346]
[1744376765072,0.1272,1556.3,1556.2,13.84871614]
[1744376765280,0.1272,1556.3,1556.2,14.39871614]
[1744376765443,0.1272,1556.3,1556.2,21.73571614]
[1744376765633,0.1272,1556.3,1556.2,25.36772932]
[1744376766449,0.06423361,1557.0,1556.6,0.8317]
[1744376766679,0.19333361,1557.1,1556.8,6.42329]
[1744376766979,6.42277,1557.0,1556.6,16.51019614]
[1744376767148,6.42277,1557.0,1556.6,18.16121575]
[1744376767343,0.06423361,1557.0,1556.7,6.42376]
[1744376767583,0.1291,1557.1,1556.7,12.84747]
[1744376767878,0.19333361,1557.1,1556.7,13.31923929]
[1744376768173,0.1291,1557.1,1556.8,13.62373]
[1744376768333,0.1291,1557.1,1556.9,1.362373]
[1744376769069,0.1291,1557.3,1556.9,14.208053]
[1744376769269,0.1291,1557.3,1557.0,6.42231]
[1744376769473,0.06423361,1557.4,1557.1,12.8441]
[1744376769769,7.335,1557.7,1557.1,12.8441]
[1744376769770,6.54887,1557.7,1557.3,6.42114]
[1744376769945,0.19333361,1557.7,1557.4,6.4208]
[1744376770150,0.19333361,1557.7,1557.3,7.063354]
[1744376770351,0.1291,1557.7,1557.3,7.063354]
[1744376770552,0.1291,1557.7,1557.4,6.42094]
[1744376770852,0.1291,1557.7,1557.3,7.063354]
[1744376771046,0.1291,1557.7,1557.1,10.20211]
[1744376771047,0.06423361,1557.6,1557.1,10.20211]
[1744376771235,6.48443361,1557.6,1557.2,6.42165]
[1744376771434,6.48444361,1557.6,1557.1,0.7803]
[1744376771633,0.06423361,1557.6,1557.1,0.8195]
[1744376771839,0.06423361,1557.6,1557.2,12.84314]
[1744376772083,1.48498251,1557.6,1557.2,6.42149]
[1744376772282,0.06423361,1557.6,1557.3,3.0]
[1744376772577,0.06423361,1557.6,1557.3,15.84249]
[1744376772741,0.06423361,1557.7,1557.3,15.84249]
[1744376772966,0.06423361,1557.7,1557.3,3.0]
[1744376773273,0.06423361,1557.9,1557.5,7.32335705]
[1744376773486,6.41815,1558.1,1557.8,0.8007]
[1744376773786,6.41889,1557.9,1557.5,0.8007]
[1744376773990,0.06423361,1557.8,1557.5,0.8007]
[1744376774168,0.06423361,1557.9,1557.5,7.22112]
[1744376774364,6.48200361,1558.2,1557.7,6.41937]
[1744376774569,6.41865,1558.0,1557.5,6.32092453]
[1744376774808,6.41816,1558.1,1557.6,6.4199]
[1744376774970,6.48239361,1558.1,1557.7,6.41952]
[1744376775168,0.06423361,1558.1,1557.7,12.83901]
[1744376775363,6.48237361,1558.1,1557.7,7.703391]
[1744376775569,6.41864,1558.0,1557.5,12.74129453]
[1744376775765,6.41864,1558.0,1557.6,6.42009]
[1744376776273,0.06423361,1558.1,1557.7,6.41939]
[1744376776497,0.06423361,1558.1,1557.8,6.41919]
[1744376776810,0.06423361,1558.1,1557.7,6.41939]
[1744376776979,7.78520697,1558.1,1557.7,6.41939]
[1744376777507,1.36713697,1558.1,1557.5,12.74134453]
[1744376777709,6.41906,1557.9,1557.5,1.27545548]
[1744376777907,0.06423361,1557.9,1557.5,7.69568548]
[1744376778215,0.06423361,1557.9,1557.5,14.11615548]
[1744376779911,0.06423361,1557.9,1557.6,6.42006]
[1744376780114,6.61181361,1558.0,1557.6,6.42001]
[1744376780495,0.19333361,1558.0,1557.6,7.83159855]
[1744376780800,0.19333361,1558.0,1557.6,14.25159855]
[1744376780980,0.1291,1558.0,1557.7,6.41971]
[1744376781187,0.19333361,1558.0,1557.7,6.41971]
[1744376781480,0.1291,1558.0,1557.8,6.41928]
[1744376781679,0.06423361,1558.1,1557.8,7.703179]
[1744376782021,6.54777,1558.0,1557.6,1.41158855]
[1744376782201,6.54777,1558.0,1557.6,7.83165855]
[1744376782399,0.06423361,1557.9,1557.6,14.25172855]
[1744376782701,0.1291,1558.0,1557.7,6.41967]
[1744376782927,0.1291,1558.0,1557.7,6.41961]
[1744376783128,6.54686,1558.2,1557.8,6.41904]
[1744376783332,0.19333361,1558.2,1557.8,7.20274]
[1744376783528,6.61114361,1558.2,1557.8,0.7837]
[1744376783747,0.19333361,1558.2,1557.7,11.52605691]
[1744376784044,0.19333361,1558.2,1557.7,7.20269986]
[1744376784251,6.41827,1558.1,1557.7,0.78311986]
[1744376784541,12.83671,1558.1,1557.7,0.78311986]
[1744376784943,12.90094361,1558.1,1557.7,0.78311986]
[1744376785142,12.90094361,1558.1,1557.6,18.03536855]
[1744376785143,0.1291,1558.0,1557.6,1.41158855]
[1744376785446,12.96666,1558.0,1557.6,1.41158855]
[1744376785619,12.96666,1558.0,1557.5,17.63893253]
[1744376785818,0.06423361,1557.9,1557.5,17.63893253]
[1744376786355,6.42023,1557.6,1557.3,0.46931239]
[1744376786672,6.42023,1557.6,1557.2,13.64254]
[1744376786673,6.48446361,1557.6,1557.2,13.64254]
[1744376786850,6.48446361,1557.6,1557.3,0.48831972]
[1744376787004,6.48446361,1557.6,1557.3,1.41308597]
[1744376788629,0.06423361,1557.6,1557.3,4.41308597]
[1744376788877,6.54846,1557.8,1557.4,6.42077]
[1744376789075,12.96802,1557.8,1557.4,6.42077]
[1744376789272,12.96805,1557.8,1557.5,3.65487552]
[1744376789570,6.54846,1557.8,1557.5,4.47507552]
[1744376789763,6.48318361,1557.9,1557.5,10.89561552]
[1744376789975,0.1291,1558.0,1557.7,3.65487552]
[1744376790281,0.3925984,1558.3,1557.7,3.65487552]
[1744376790282,6.41828,1558.1,1557.9,3.65487552]
[1744376790745,6.48251361,1558.1,1557.9,3.65487552]
[1744376790928,6.48251361,1558.1,1557.7,10.07449552]
[1744376790929,0.06423361,1558.1,1557.7,10.07449552]
[1744376791132,6.41867,1558.0,1557.7,17.80154507]
[1744376791332,6.48239361,1558.1,1557.8,6.41919]
[1744376791574,6.54688,1558.2,1557.9,7.1727]
[1744376792132,6.61111361,1558.2,1557.9,7.1727]
[1744376792578,13.02892361,1558.2,1557.9,7.1727]
[1744376792774,12.96469,1558.2,1557.9,7.1727]
[1744376793079,0.3925984,1558.3,1557.9,2.59648489]
[1744376793373,0.1291,1558.2,1557.7,1.30744955]
[1744376793548,6.48244361,1558.1,1557.8,6.41916]
[1744376793742,6.8101084,1558.3,1557.9,10.79945659]
[1744376793977,6.9392084,1558.3,1558.0,6.41831]
[1744376794137,0.3925984,1558.3,1558.1,6.41783]
[1744376794335,0.3925984,1558.3,1558.2,0.641783]
[1744376794535,0.3925984,1558.3,1558.0,7.20708]
[1744376794768,0.3925984,1558.3,1558.1,6.41795]
[1744376794971,0.3925984,1558.3,1558.1,6.41792]
[1744376795166,0.3925984,1558.3,1558.2,6.41766]
[1744376795755,0.3925984,1558.3,1558.2,7.20226]
[1744376795953,0.3925984,1558.3,1558.2,9.63773437]
[1744376796792,0.3925984,1558.3,1558.2,13.18773437]
[1744376797134,0.3925984,1558.3,1558.2,12.63773437]
[1744376797667,0.3925984,1558.3,1558.2,6.22007437]
[1744376797872,0.3925984,1558.3,1558.2,3.0]
[1744376798048,0.3925984,1558.3,1558.0,7.17544]
[1744376798253,6.8098384,1558.3,1558.1,3.0]
[1744376798454,6.8098384,1558.3,1558.0,7.17544]
[1744376798655,0.3925984,1558.3,1558.1,0.717544]
[1744376798845,0.3925984,1558.3,1558.0,7.1755]
[1744376799043,6.8098484,1558.3,1558.0,13.59385]
[1744376799245,0.3925984,1558.3,1558.1,12.83602]
[1744376799585,0.3925984,1558.3,1558.1,6.41795]
[1744376800155,6.8099184,1558.3,1558.0,7.17552]
[1744376800454,6.8099184,1558.3,1558.1,7.135272]
[1744376800455,0.3925984,1558.3,1558.1,7.135272]
[1744376800883,0.3925984,1558.3,1558.1,0.717552]
[1744376801078,6.8099584,1558.3,1558.1,0.717552]
[1744376801860,13.2273684,1558.3,1558.1,0.717552]
[1744376802072,0.3925984,1558.3,1558.1,0.717552]
[1744376803001,0.3925984,1558.3,1558.2,7.31413257]
[1744376803201,0.3925984,1558.3,1558.2,9.76837883]
[1744376804304,0.3925984,1558.3,1558.2,9.83254295]
[1744376804518,0.3925984,1558.3,1558.2,3.35071883]
[1744376804664,0.3925984,1558.3,1558.2,6.41766]
[1744376804984,0.3925984,1558.3,1558.2,6.48182935]
[1744376805184,0.3925984,1558.3,1558.2,6.41766]
[1744376805502,0.3925984,1558.3,1558.2,6.48182455]
[1744376805707,0.3925984,1558.3,1558.2,9.48182455]
[1744376805910,0.3925984,1558.3,1558.2,12.21701058]
[1744376806205,0.3925984,1558.3,1558.2,12.98661058]
[1744376807009,0.3925984,1558.3,1558.2,12.92244603]
[1744376807788,0.3925984,1558.3,1558.2,13.47244603]
[1744376808668,0.3925984,1558.3,1558.2,12.15284603]
[1744376808900,0.3925984,1558.3,1558.2,9.41766]
[1744376809274,0.3925984,1558.3,1558.2,3.0]
[1744376809518,0.3925984,1558.3,1558.1,6.41786]
[1744376809815,6.41875,1558.0,1557.6,6.41993]
[1744376809985,6.41875,1558.0,1557.7,7.061593]
[1744376810168,6.41875,1558.0,1557.7,13.481183]
[1744376810374,0.1291,1558.1,1557.9,6.41888]
[1744376810579,13.3565084,1558.3,1557.9,6.41888]
[1744376810916,6.41776,1558.2,1557.9,6.41888]
[1744376811087,12.89984361,1558.2,1557.9,8.00269]
[1744376811706,6.41815,1558.1,1557.9,1.58381]
[1744376812106,6.48199361,1558.2,1557.9,8.00267]
[1744376812274,6.9390284,1558.3,1557.9,1.58381]
[1744376812475,13.42067201,1558.3,1557.9,12.8375]
[1744376812773,6.41768,1558.2,1557.9,12.8375]
[1744376812985,6.9390284,1558.3,1558.0,9.41848]
[1744376813183,0.5216984,1558.3,1557.9,6.41873]
[1744376813387,0.3925984,1558.3,1557.8,6.41919]
[1744376813702,0.1291,1558.0,1557.7,3.0]
[1744376813892,0.19333361,1558.0,1557.7,9.41963]
[1744376814093,0.19333361,1558.0,1557.5,6.42045]
[1744376814333,6.41993,1557.7,1557.4,7.21378]
[1744376814639,0.06423361,1557.6,1557.3,6.42133]
[1744376814836,0.1291,1557.7,1557.4,6.42072]
[1744376815131,6.54883,1557.7,1557.4,12.84144]
[1744376815292,7.50933361,1557.6,1556.8,7.68757304]
[1744376815494,6.42063,1557.5,1557.2,6.42164]
[1744376815729,6.42099,1557.4,1557.1,6.42216]
[1744376816030,6.48579361,1557.3,1556.9,11.64677617]
[1744376816200,6.61489361,1557.3,1557.0,3.0]
[1744376816404,6.42182,1557.2,1556.9,10.84517617]
[1744376816600,6.42057,1557.5,1557.1,6.42218]
[1744376816835,20.28484,1557.7,1557.3,6.42125]
[1744376817128,20.28484,1557.7,1557.4,6.42081]
[1744376817129,6.54892,1557.7,1557.4,6.42081]
[1744376817306,12.96881,1557.7,1557.4,6.42081]
[1744376817499,12.96881,1557.7,1557.3,7.18416]
[1744376817500,6.48436361,1557.6,1557.3,0.7629]
[1744376817830,6.42096,1557.4,1557.1,13.60704]
[1744376817987,6.42096,1557.4,1557.2,1.360704]
[1744376817988,6.48519361,1557.4,1557.2,1.360704]
[1744376818329,6.48519361,1557.4,1557.1,7.18496]
[1744376818528,0.1291,1557.4,1557.1,6.42195]
[1744376818727,6.55017,1557.4,1557.1,6.42195]
[1744376818930,0.1291,1557.4,1557.2,6.42167]
[1744376819095,12.97129,1557.4,1557.0,10.50700762]
[1744376819291,7.317,1557.6,1557.2,6.42175]
[1744376819496,0.06423361,1557.5,1557.2,12.84338]
[1744376819898,6.48477361,1557.5,1557.1,7.47279076]
[1744376820096,12.90572361,1557.5,1557.1,13.89487076]
[1744376820549,0.06423361,1557.5,1557.3,6.42115]
[1744376820763,6.61362361,1557.6,1557.3,6.42115]
[1744376820962,0.19333361,1557.6,1557.4,6.42091]
[1744376821160,0.19333361,1557.6,1557.3,7.705443]
[1744376821364,0.1291,1557.6,1557.4,6.42078]
[1744376821657,4.91382419,1558.1,1557.8,12.83848]
[1744376821855,4.9780578,1558.1,1557.8,6.41918]
[1744376822157,11.3963178,1558.1,1557.8,6.41918]
[1744376822944,6.61159361,1558.1,1557.8,6.41918]
[1744376823132,7.91444697,1558.1,1557.6,12.84006]
[1744376823326,6.41863,1558.0,1557.6,12.83999]
[1744376823531,14.33263697,1558.1,1557.7,6.41968]
[1744376823829,6.54723,1558.1,1557.7,12.83928]
[1744376824029,0.06423361,1558.0,1557.7,12.83928]
[1744376824443,0.06423361,1558.0,1557.7,6.4196]
[1744376824623,6.54717,1558.1,1557.7,6.41948]
[1744376824827,0.1291,1558.1,1557.8,6.41919]
[1744376825028,0.1291,1558.1,1557.9,0.641919]
[1744376825225,0.1291,1558.1,1557.8,6.41919]
[1744376825616,0.19333361,1558.1,1557.8,6.41919]
[1744376826140,0.06423361,1558.1,1558.0,6.41848]
[1744376826320,7.8396984,1558.3,1558.1,6.41785]
[1744376827245,0.5216984,1558.3,1558.1,6.41785]
[1744376827553,0.5216984,1558.3,1558.1,7.701587]
[1744376827937,0.3925984,1558.3,1558.1,7.701577]
[1744376828140,0.3925984,1558.3,1558.1,12.8359]
[1744376828314,0.3925984,1558.3,1558.1,6.41795]
[1744376828652,0.3925984,1558.3,1558.2,6.41766]
[1744376829229,0.3925984,1558.3,1558.2,9.95401178]
[1744376829432,0.3925984,1558.3,1558.2,12.67935381]
[1744376830453,0.3925984,1558.3,1558.2,12.20716938]
[1744376830638,0.3925984,1558.3,1558.2,9.41766]
[1744376830832,0.3925984,1558.3,1558.2,9.89335706]
[1744376831029,0.3925984,1558.3,1558.2,10.44335706]
[1744376831352,0.3925984,1558.3,1558.2,11.22055706]
[1744376831920,0.3925984,1558.3,1558.2,10.67055706]
[1744376832128,0.3925984,1558.3,1558.1,17.154882]
[1744376832129,0.3925984,1558.3,1558.1,12.83582]
[1744376832341,0.3925984,1558.3,1558.1,3.0]
[1744376832567,6.41825,1558.1,1557.7,7.22968]
[1744376832771,6.61109361,1558.2,1557.9,6.41889]
[1744376833360,0.19333361,1558.2,1558.0,6.41848]
[1744376833559,0.19333361,1558.2,1558.0,6.41834]
[1744376833731,0.19333361,1558.2,1557.9,6.41877]
[1744376834456,13.02892361,1558.2,1557.8,6.41919]
[1744376834657,13.02892361,1558.2,1557.6,6.42002]
[1744376834658,6.41851,1558.0,1557.6,6.42002]
[1744376834960,0.19333361,1557.9,1557.7,3.0]
[1744376835838,0.1291,1557.9,1557.7,9.41966]
[1744376836038,0.1291,1557.9,1557.7,15.83925]
[1744376836241,0.1291,1557.9,1557.7,9.41955]
[1744376836464,0.1291,1557.9,1557.7,10.4338422]
[1744376836866,6.54807,1557.9,1557.6,0.723372]
[1744376837162,6.54807,1557.9,1557.3,20.103765]
[1744376837163,6.41981,1557.7,1557.3,6.42121]
[1744376837333,0.06423361,1557.6,1557.3,6.42121]
[1744376837754,0.06423361,1557.6,1557.3,12.84246]
[1744376838157,0.06423361,1557.6,1557.3,6.42121]
[1744376838343,0.06423361,1557.6,1557.3,12.84244]
[1744376838545,0.1291,1557.5,1557.3,6.42121]
[1744376838865,0.1291,1557.5,1557.3,7.705502]
[1744376839564,0.1291,1557.5,1557.3,14.126742]
[1744376839767,0.1291,1557.5,1557.3,7.705502]
[1744376840576,0.1291,1557.5,1556.8,0.7596]
[1744376840780,6.4216,1557.3,1557.0,6.4226]
[1744376840947,0.06423361,1557.2,1557.0,6.4226]
[1744376841146,0.06423361,1557.3,1557.0,6.4226]
[1744376841476,0.06423361,1557.4,1557.2,6.42178]
[1744376841641,6.48526361,1557.4,1557.1,6.42204]
[1744376841978,12.90655361,1557.4,1557.0,7.707006]
[1744376842276,6.48526361,1557.4,1557.0,6.42246]
[1744376842944,12.90638361,1557.4,1557.0,6.42246]
[1744376843155,0.06423361,1557.4,1556.9,6.42302]
[1744376843354,0.06423361,1557.4,1557.1,6.42192]
[1744376843956,0.06423361,1557.4,1557.1,12.84399]
[1744376844289,0.06423361,1557.4,1557.1,6.42192]
[1744376844478,0.06423361,1557.4,1557.1,7.70636]
[1744376844673,0.06423361,1557.4,1557.1,14.12843]
[1744376845084,6.48521361,1557.4,1557.1,7.70636]
[1744376845300,6.48521361,1557.4,1557.1,12.84398]
[1744376846291,12.90642361,1557.4,1557.0,12.84496]
[1744376847091,6.48521361,1557.4,1557.1,6.42217]
[1744376847269,12.90642361,1557.4,1557.1,6.42217]
[1744376847590,0.1291,1557.3,1557.1,6.42217]
[1744376847952,0.19333361,1557.3,1557.1,6.42217]
[1744376848165,0.1291,1557.3,1557.1,14.128805]
[1744376848692,0.1291,1557.3,1557.1,7.706635]
[1744376848995,0.1291,1557.3,1557.1,14.128715]
[1744376849199,6.55083,1557.3,1556.9,12.84578]
[1744376849396,12.90799361,1557.2,1556.8,15.84666]
[1744376850270,0.06423361,1557.2,1556.8,3.0]
[1744376850498,0.19333361,1557.3,1557.0,6.42223]
[1744376850696,0.19333361,1557.3,1557.0,7.064453]
[1744376850903,0.19333361,1557.3,1557.0,13.486863]
[1744376851274,0.06423361,1557.3,1557.0,14.286563]
[1744376851474,6.55016,1557.4,1557.1,6.42207]
[1744376851667,0.06423361,1557.3,1557.1,6.42207]
[1744376852062,0.1291,1557.4,1557.1,12.84415]
[1744376852288,0.1291,1557.4,1557.3,6.42137]
[1744376852602,0.06423361,1557.5,1557.3,6.42124]
[1744376853372,0.06423361,1557.5,1557.3,12.84248]
[1744376853578,0.06423361,1557.5,1557.2,6.42172]
[1744376853774,0.06423361,1557.5,1557.1,1.4286073]
[1744376854001,6.55054,1557.3,1557.0,6.42247]
[1744376854170,0.06423361,1557.2,1557.0,6.42247]
[1744376854501,0.06423361,1557.2,1557.0,12.84496]
[1744376855203,0.06423361,1557.3,1557.1,9.42219]
[1744376855382,0.19333361,1557.4,1557.2,12.84325]
[1744376855973,0.19333361,1557.4,1557.2,14.427575]
[1744376856193,0.19333361,1557.4,1557.2,8.005915]
[1744376856702,0.19333361,1557.4,1557.2,14.427585]
[1744376857004,0.06423361,1557.5,1557.2,14.427585]
[1744376857304,0.06423361,1557.5,1557.3,6.42133]
[1744376857602,6.48498361,1557.5,1557.2,1.584325]
[1744376857802,6.42153,1557.3,1557.1,3.0]
[1744376857984,0.06423361,1557.2,1557.0,6.42249]
[1744376858198,0.06423361,1557.2,1557.0,12.84498]
[1744376858422,0.06423361,1557.3,1557.0,12.84498]
[1744376858927,0.06423361,1557.3,1557.1,9.42215]
[1744376859128,0.06423361,1557.3,1557.2,6.42178]
[1744376859295,0.19333361,1557.4,1557.1,10.442215]
[1744376859624,0.19333361,1557.4,1557.1,16.864285]
[1744376860726,6.61445361,1557.4,1557.1,3.0]
[1744376861238,13.03573361,1557.4,1557.1,3.0]
[1744376861429,6.55022,1557.4,1557.1,3.0]
[1744376861729,6.61445361,1557.4,1557.1,9.42207]
[1744376862431,0.19333361,1557.4,1557.1,9.42207]
[1744376862634,0.19333361,1557.4,1557.1,10.446497]
[1744376863490,0.19333361,1557.4,1557.1,16.868567]
[1744376863704,0.19333361,1557.4,1557.2,6.42173]
[1744376864830,0.19333361,1557.4,1557.2,12.84339]
[1744376865008,0.19333361,1557.4,1557.2,6.42166]
[1744376865205,0.19333361,1557.4,1557.1,16.868567]
[1744376865510,0.19333361,1557.4,1557.1,16.868587]
[1744376865733,6.61439361,1557.4,1557.1,9.42207]
[1744376866067,6.42237,1557.1,1556.8,6.4233]
[1744376866215,0.1291,1557.2,1557.1,6.42219]
[1744376866412,6.55021,1557.4,1557.1,12.84438]
[1744376866652,0.1291,1557.6,1557.2,3.0]
[1744376866969,6.54818,1557.9,1557.5,6.42053]
[1744376867260,12.96721,1557.9,1557.6,6.41999]
[1744376867413,6.41947,1557.8,1557.5,6.42042]
[1744376867854,12.83891,1557.8,1557.5,6.42042]
[1744376868060,6.42014,1557.6,1557.3,9.42132]
[1744376868356,6.61347361,1557.6,1557.3,6.42132]
[1744376868763,6.61354361,1557.6,1557.2,7.19748]
[1744376868919,6.42054,1557.5,1557.2,9.48595371]
[1744376869127,6.42054,1557.5,1557.2,15.8434]
[1744376869441,0.06423361,1557.5,1557.2,15.8434]
[1744376869646,12.96983,1557.6,1557.2,17.6337638]
[1744376869959,6.48495361,1557.5,1557.2,4.7903638]
[1744376870124,6.61405361,1557.5,1557.2,9.42167]
[1744376870539,6.61405361,1557.5,1557.2,15.84331]
[1744376870755,0.19333361,1557.5,1556.9,0.7981]
[1744376870919,6.42137,1557.3,1556.8,6.42343]
[1744376871114,6.48603361,1557.2,1556.9,7.065253]
[1744376871314,6.42222,1557.1,1556.9,3.642343]
[1744376871545,0.06423361,1557.2,1557.0,6.42234]
[1744376871752,0.06423361,1557.3,1557.1,6.42203]
[1744376872065,12.90760361,1557.3,1557.0,6.42248]
[1744376872235,14.21127397,1557.3,1557.0,6.54808]
[1744376872560,6.42193,1557.2,1557.0,0.1256]
[1744376874368,6.48616361,1557.2,1557.0,0.1256]
[1744376874651,0.06423361,1557.2,1557.0,6.54815]
[1744376874864,0.06423361,1557.3,1557.0,12.97062]
[1744376875435,0.1291,1557.4,1557.1,6.4218]
[1744376875630,0.19333361,1557.4,1557.2,6.42178]
[1744376875834,6.61431361,1557.4,1557.1,6.4218]
[1744376876969,6.61431361,1557.4,1557.1,12.84387]
[1744376877135,6.61431361,1557.4,1557.1,14.222657]
[1744376877330,6.61431361,1557.4,1557.1,7.800587]
[1744376877529,13.03540361,1557.4,1557.1,7.800587]
[1744376877730,12.97117,1557.4,1557.1,7.800587]
[1744376877929,6.42138,1557.3,1557.1,1.378787]
[1744376878136,12.90711361,1557.3,1557.1,1.378787]
[1744376878341,12.90711361,1557.3,1557.0,6.54811]
[1744376879039,0.1291,1557.4,1557.0,0.1256]
[1744376879247,6.48588361,1557.3,1557.0,0.1256]
[1744376879647,6.48588361,1557.3,1557.0,6.54815]
[1744376879870,6.48588361,1557.3,1557.0,12.9707]
[1744376880246,6.48588361,1557.3,1557.0,12.97063]
[1744376880446,12.90738361,1557.3,1557.0,7.845143]
[1744376880960,6.42178,1557.2,1557.0,0.1256]
[1744376881166,6.48642361,1557.1,1557.0,0.1256]
[1744376881472,0.06423361,1557.1,1557.0,0.1256]
[1744376881645,6.42178,1557.2,1557.0,0.1256]
[1744376882051,6.55009,1557.4,1557.1,6.42217]
[1744376882243,6.55009,1557.4,1557.1,13.499027]
[1744376882444,6.42065,1557.5,1557.2,12.8434]
[1744376882644,13.85537,1557.6,1557.3,6.42114]
[1744376882944,13.72627,1557.6,1557.3,12.84231]
[1744376883182,13.72627,1557.6,1557.3,13.61691]
[1744376883486,6.42027,1557.6,1557.3,14.978601]
[1744376883690,6.48450361,1557.6,1557.3,8.557431]
[1744376883984,11.2692278,1557.6,1557.3,14.978671]
[1744376884150,11.2692278,1557.6,1557.3,2.136291]
[1744376884347,6.42127,1557.4,1557.0,6.5481]
[1744376884649,12.84341,1557.3,1557.0,6.5482]
[1744376884853,6.42164,1557.3,1557.0,6.5482]
[1744376885151,6.42164,1557.3,1557.0,12.9708]
[1744376885380,12.90647361,1557.4,1557.1,6.42218]
[1744376885551,6.42137,1557.3,1557.1,6.42218]
[1744376885746,12.90666361,1557.4,1557.1,7.719218]
[1744376885951,6.48531361,1557.4,1557.1,7.719218]
[1744376886151,4.78472419,1557.6,1557.4,6.42082]
[1744376886363,6.48480361,1557.5,1557.2,12.84326]
[1744376886673,11.2692478,1557.6,1557.3,7.705576]
[1744376886982,6.48452361,1557.6,1557.3,7.21555]
[1744376887143,0.06423361,1557.6,1557.4,6.4209]
[1744376887481,0.06423361,1557.6,1557.3,7.21555]
[1744376887686,6.42016,1557.6,1557.3,13.6368]
[1744376887889,4.78472419,1557.7,1557.4,7.7843]
[1744376888073,4.78472419,1557.7,1557.4,14.20524]
[1744376888595,11.2687178,1557.7,1557.4,14.20524]
[1744376888760,11.2687178,1557.7,1557.4,14.20514]
[1744376889267,4.8489578,1557.7,1557.5,6.42054]
[1744376889464,4.78472419,1557.7,1557.5,14.261254]
[1744376889782,4.8489578,1558.0,1557.8,6.41929]
[1744376890167,4.78472419,1558.0,1557.9,7.18859]
[1744376890370,4.78472419,1558.0,1557.9,9.19770603]
[1744376890557,4.78472419,1558.0,1557.9,13.51810262]
[1744376890889,4.78472419,1558.0,1557.9,17.06810262]
[1744376891272,4.78472419,1558.0,1557.9,13.51810262]
[1744376891464,4.78472419,1558.0,1557.8,6.41909]
[1744376891667,11.20335419,1558.0,1557.7,7.25237]
[1744376892381,11.2675878,1558.0,1557.7,7.25237]
[1744376892582,11.2675878,1558.0,1557.7,13.67204]
[1744376892892,11.20335419,1558.0,1557.7,13.67204]
[1744376893185,4.78472419,1558.0,1557.8,6.41924]
[1744376893402,4.78472419,1558.0,1557.8,12.83842]
[1744376893582,4.78472419,1558.0,1557.8,11.44030228]
[1744376893894,6.41825,1558.1,1557.8,17.85945228]
[1744376894107,0.06423361,1558.2,1558.0,6.41845]
[1744376894258,6.8099584,1558.3,1558.0,6.41845]
[1744376894259,0.3925984,1558.3,1558.1,6.41779]
[1744376894458,0.3925984,1558.3,1558.2,7.059439]
[1744376895074,0.3925984,1558.3,1558.2,10.71340028]
[1744376895282,0.3925984,1558.3,1558.2,12.01040241]
[1744376895731,0.3925984,1558.3,1558.2,5.10004028]
[1744376895928,0.3925984,1558.3,1558.2,10.87592128]
[1744376897014,0.3925984,1558.3,1558.2,6.41766]
[1744376897218,0.3925984,1558.3,1558.2,10.07162128]
[1744376897422,0.3925984,1558.3,1558.2,7.22676]
[1744376897621,0.3925984,1558.3,1558.1,6.41786]
[1744376897827,0.3925984,1558.3,1558.1,6.41805]
[1744376898019,0.3925984,1558.3,1558.1,6.41793]
[1744376898218,6.41777,1558.2,1558.0,0.8091]
[1744376898393,6.41777,1558.2,1557.9,6.41874]